[Event "Portuguese-ch U10-12 2022"]
[Site "Fatima"]
[Date "2022.04.14"]
[Round "7.2"]
[White "Albuquerque, Eduardo Ferreira"]
[Black "Faryma, Matviy"]
[Result "1/2-1/2"]
[ECO "B84"]
[WhiteElo "1828"]
[BlackElo "1426"]
[Annotator "NA"]
[PlyCount "91"]
[EventDate "2022.04.10"]
[EventType "swiss"]
[EventCountry "POR"]
[SourceTitle "playchess.com"]
[Source "ChessBase"]
[SourceQuality "1"]
[TimeControl "5400+30"]

{[%evp 8,87,20,22,22,17,20,18,24,11,103,44,70,0,0,12,10,0,35,21,109,87,104,113,127,87,110,107,95,54,87,27,32767,0,0,0,0,-11,-7,-233,-210,-226,-61,-53,32767,32767,32767,32767,-22,-89,-85,-87,0,-8,27,0,0,0,0,-63,-53,-52,-57,-51,-20,-11,0,0,32767,32767,32767,32767,32767,32767,32767,32767,0,-6131,-439,32767,32767,-208]} 1. e4 {[%emt 0:00:07]} c5 {[%emt 0:01:20]} 2. Nf3 {[%emt 0:00:21]} d6 {[%emt 0:00:17]} 3. d4 {[%emt 0:00:37]} cxd4 {[%emt 0:00:18]} 4. Nxd4 {[%emt 0:00:34]} Nf6 {[%emt 0:00:22]} 5. Nc3 {[%emt 0:00:59]} a6 {[%emt 0:00:06]} 6. Be2 {[%emt 0:06:23]} e6 {[%emt 0:01:00]} 7. Be3 {[%emt 0:02:02]} Be7 {[%emt 0:01:26]} 8. Qd2 {[%emt 0:02:49]} Nbd7 {[%emt 0:01:40]} (8... O-O $11) 9. O-O-O {[%emt 0:06:29]} (9. g4 $16) 9... Qc7 {[%emt 0:04:00]} 10. Kb1 {[%emt 0:03:51]} (10. g4 $16) 10... b5 {[%emt 0:00:54]} 11. a3 {[%emt 0:01:27]} Bb7 {[%emt 0:02:45]} 12. f3 {[%emt 0:01:07]} Ne5 {[%emt 0:01:08]} 13. g4 {[%emt 0:05:17]} Rd8 {[%emt 0:06:02]} (13... O-O $11 {keeps the balance.}) 14. g5 {[%emt 0:06:59]} Nfd7 {[%emt 0:00:51]} 15. f4 {[%emt 0:03:17]} Nc4 {[%emt 0:00:42]} 16. Bxc4 {[%emt 0:01:24]} Qxc4 {[%emt 0:00:48]} 17. Rhe1 {[%emt 0:09:06]} b4 {[%emt 0:14:38]} 18. axb4 {[%emt 0:04:29]} Qxb4 {[%emt 0:00:01]} (18... O-O $142 19. f5 Rfe8) 19. Nb3 {[%emt 0:02:21]} ({Better is} 19. f5 $16) 19... Nc5 {[%emt 0:04:09]} 20. Bxc5 {[%emt 0:01:09]} dxc5 {[%emt 0:00:31]} 21. Qe2 {[%emt 0:09:25]} O-O {[%emt 0:00:30]} 22. h4 $1 {[%emt 0:01:11]} c4 {[%emt 0:04:40]} 23. Rd4 $2 {[%emt 0:06:00]} (23. Na2 $1 $11 Qb5 24. Nc3) 23... Rxd4 {[%emt 0:00:19]} 24. Nxd4 {[%emt 0:00:08] [#]} Rd8 {[%emt 0:06:45]} ({Better is} 24... Rb8 $1 $19 25. Na2 Qb6) 25. Nf3 $1 {[%emt 0:03:39]} Bc6 {[%emt 0:02:31]} 26. Na2 {[%emt 0:01:58]} Qc5 {[%emt 0:01:09]} 27. Ne5 {[%emt 0:03:03]} Bb5 {[%emt 0:01:46]} 28. c3 {[%emt 0:07:56]} ({Reject} 28. Qh5 Rf8 29. Rd1 Qf2 $15) (28. Nc3 $11) 28... Bd6 {[%emt 0:03:44]} 29. Rd1 {[%emt 0:02:56]} Ba4 {[%emt 0:01:25]} (29... Rb8 $17 30. Nd7 Bxd7) 30. Rd4 {[%emt 0:01:12]} Bb5 {[%emt 0:03:25]} 31. Qd2 {[%emt 0:03:14]} ({But not} 31. Qh5 Rf8 32. Qd1 Bxe5 33. fxe5 Qxe5 $17) 31... Qc7 {[%emt 0:00:50]} 32. h5 {[%emt 0:02:02]} Be7 {[%emt 0:01:42]} 33. g6 {[%emt 0:00:48]} (33. h6 $11) 33... fxg6 $1 {[%emt 0:00:31]} 34. hxg6 {[%emt 0:00:21]} h6 $1 {[%emt 0:00:16]} 35. Nf7 {[%emt 0:01:34]} Rxd4 {[%emt 0:00:16]} (35... Re8 $15 {might be stronger.}) 36. cxd4 {[%emt 0:00:26]} Qc6 {[%emt 0:02:20]} 37. Qe3 {[%emt 0:01:38]} Qb6 {[%emt 0:01:20]} 38. f5 {[%emt 0:00:35]} exf5 {[%emt 0:00:48]} 39. exf5 {[%emt 0:00:21]} Bf6 {[%emt 0:00:07]} 40. Qe4 {[%emt 0:00:43]} Qc6 {[%emt 0:00:33]} 41. d5 {[%emt 0:00:23] [#]} Qb6 $11 {[%emt 0:00:48]} (41... Qe8 $1 $17 {[%cal Re8e4]} 42. Qe6 Bd7 43. Nxh6+ Kf8 44. Qd6+ Qe7 45. Qxe7+ (45. Qb8+ $2 Be8 $19) 45... Bxe7) 42. d6 $2 {[%emt 0:00:26]} (42. Nc3 $11 Bxc3 43. bxc3) 42... Bc6 {[%emt 0:00:16]} 43. Qe2 {[%emt 0:00:40]} Be4+ {[%emt 0:00:58]} 44. Kc1 {[%emt 0:00:31]} Qg1+ {[%emt 0:07:21]} 45. Kd2 {[%emt 0:00:15]} Qd4+ {[%emt 0:00:38]} 46. Kc1 {[%emt 0:00:29]} 1/2-1/2

[Event "Portuguese-ch U10-12 2022"]
[Site "Fatima"]
[Date "2022.04.14"]
[Round "7.3"]
[White "De Sousa Silva, Lucas Jose"]
[Black "Cymbron, Victoria"]
[Result "0-1"]
[ECO "B15"]
[WhiteElo "1656"]
[BlackElo "1494"]
[Annotator "NA RC"]
[PlyCount "54"]
[EventDate "2022.04.10"]
[EventType "swiss"]
[EventCountry "POR"]
[SourceTitle "playchess.com"]
[Source "ChessBase"]
[SourceQuality "1"]
[TimeControl "5400+30"]

1. e4 {[%emt 0:00:01]} c6 {[%emt 0:00:10]} 2. Nc3 {[%emt 0:00:14]} d5 {[%emt 0:00:06]} 3. d4 {[%emt 0:00:10]} dxe4 {[%emt 0:02:17]} 4. Nxe4 {[%emt 0:00:05]} Nf6 {[%emt 0:00:12]} 5. Nxf6+ {[%emt 0:00:35]} exf6 {[%emt 0:00:10]} 6. h3 {[%emt 0:01:35]} Be6 {[%emt 0:00:37]} 7. Nf3 {[%emt 0:00:49]} Be7 {[%emt 0:01:59]} 8. Bd3 {[%emt 0:01:14]} Nd7 {[%emt 0:01:21]} 9. Nh4 {[%emt 0:03:38]} Qc7 {[%emt 0:04:04]} 10. Nf5 {[%emt 0:01:09]} Bxf5 {[%emt 0:00:09]} 11. Bxf5 {[%emt 0:00:06]} h6 {[%emt 0:03:34]} 12. O-O {[%emt 0:00:47]} O-O-O {[%emt 0:03:06]} 13. c4 {[%emt 0:01:58]} g6 {[%emt 0:00:39]} 14. Bg4 {[%emt 0:00:52]} f5 {[%emt 0:00:30]} 15. Bf3 {[%emt 0:00:11]} Bf6 {[%emt 0:03:37]} 16. Be3 {[%emt 0:03:04]} f4 {[%emt 0:05:30]} 17. Bc1 {[%emt 0:00:26]} g5 {[%emt 0:00:50]} 18. Qa4 {[%emt 0:06:49]} Bxd4 {[%emt 0:01:32]} 19. Rd1 {[%emt 0:05:09]} Ne5 {[%emt 0:02:14]} 20. Be4 {[%emt 0:03:08]} Qb6 {[%emt 0:01:33]} 21. Rf1 {[%emt 0:00:14]} h5 {[%emt 0:05:56]} 22. Rb1 {[%emt 0:01:16]} Rdg8 {[%emt 0:14:52]} 23. b4 {[%emt 0:02:19]} g4 {[%emt 0:05:57]} 24. hxg4 {[%emt 0:05:04]} hxg4 {[%emt 0:00:32]} 25. c5 {[%emt 0:00:50]} Nf3+ {[%emt 0:02:24]} 26. Bxf3 {[%emt 0:00:59]} gxf3 {[%emt 0:00:12]} 27. g3 {[%emt 0:03:22]} Rxg3# {[%emt 0:00:08]} 0-1

[Event "Portuguese-ch U10-12 2022"]
[Site "Fatima"]
[Date "2022.04.14"]
[Round "7.4"]
[White "Reis, Joao"]
[Black "Frolov, Ilya"]
[Result "1-0"]
[ECO "B24"]
[WhiteElo "1119"]
[BlackElo "1271"]
[Annotator "NA RC"]
[PlyCount "65"]
[EventDate "2022.04.10"]
[EventType "swiss"]
[EventCountry "POR"]
[SourceTitle "playchess.com"]
[Source "ChessBase"]
[SourceQuality "1"]
[TimeControl "5400+30"]

1. e4 {[%emt 0:00:02]} c5 {[%emt 0:00:01]} 2. Nc3 {[%emt 0:00:20]} Nc6 {[%emt 0:00:11]} 3. Nf3 {[%emt 0:00:10]} d6 {[%emt 0:01:12]} 4. d4 {[%emt 0:00:21]} cxd4 {[%emt 0:00:03]} 5. Nxd4 {[%emt 0:00:12]} e5 {[%emt 0:00:04]} 6. Nb3 Nf6 {[%emt 0:00:35]} 7. Bg5 {[%emt 0:01:23]} Be7 {[%emt 0:00:18]} 8. Bc4 {[%emt 0:08:23]} O-O {[%emt 0:06:35]} 9. Bxf6 {[%emt 0:03:56]} Bxf6 {[%emt 0:00:19]} 10. h4 {[%emt 0:02:59]} Bxh4 {[%emt 0:02:55]} 11. Qh5 {[%emt 0:00:32]} g6 {[%emt 0:00:26]} 12. Qh6 {[%emt 0:01:53]} Qg5 {[%emt 0:00:21]} 13. Qxh4 {[%emt 0:00:37]} Qxh4 {[%emt 0:00:38]} 14. Rxh4 {[%emt 0:00:07]} Nb4 {[%emt 0:00:19]} 15. O-O-O {[%emt 0:00:22]} Rd8 {[%emt 0:02:10]} 16. Rdh1 {[%emt 0:00:34]} h5 {[%emt 0:00:39]} 17. f4 {[%emt 0:01:56]} exf4 {[%emt 0:01:32]} 18. Rxf4 {[%emt 0:00:18]} Rf8 {[%emt 0:02:12]} 19. a3 {[%emt 0:01:00]} Nc6 {[%emt 0:00:32]} 20. Nb5 {[%emt 0:00:52]} Ne5 {[%emt 0:01:25]} 21. Bd5 {[%emt 0:01:04]} Rd8 {[%emt 0:02:26]} 22. Rhf1 {[%emt 0:03:21]} Rd7 {[%emt 0:01:28]} 23. Nd2 {[%emt 0:02:06]} a6 {[%emt 0:00:43]} 24. Nc3 {[%emt 0:00:45]} Re7 {[%emt 0:01:21]} 25. Nc4 {[%emt 0:01:57]} Be6 {[%emt 0:06:32]} 26. Bxe6 {[%emt 0:03:01]} fxe6 {[%emt 0:02:27]} 27. Nxd6 {[%emt 0:01:47]} b5 {[%emt 0:11:11]} 28. Rf6 {[%emt 0:03:35]} Kg7 {[%emt 0:03:32]} 29. R6f2 {[%emt 0:07:48]} Rd8 {[%emt 0:03:11]} 30. Rd1 {[%emt 0:00:37]} Ng4 {[%emt 0:04:03]} 31. Re2 {[%emt 0:01:34]} Ne5 {[%emt 0:02:21]} 32. Nf5+ {[%emt 0:00:43]} exf5 {[%emt 0:02:16]} 33. Rxd8 {[%emt 0:00:03]} 1-0

[Event "Portuguese-ch U10-12 2022"]
[Site "Fatima"]
[Date "2022.04.14"]
[Round "7.5"]
[White "Almeida, Diogo Rodrigues Sant"]
[Black "Nogueira, Rafael Calade"]
[Result "0-1"]
[ECO "B13"]
[WhiteElo "1467"]
[BlackElo "1263"]
[Annotator "NA RC"]
[PlyCount "150"]
[EventDate "2022.04.10"]
[EventType "swiss"]
[EventCountry "POR"]
[SourceTitle "playchess.com"]
[Source "ChessBase"]
[SourceQuality "1"]
[TimeControl "5400+30"]

1. e4 {[%emt 0:00:02]} c6 {[%emt 0:00:08]} 2. d4 {[%emt 0:00:16]} d5 {[%emt 0:00:13]} 3. exd5 {[%emt 0:00:49]} cxd5 {[%emt 0:00:43]} 4. Nf3 {[%emt 0:00:47]} Bg4 {[%emt 0:02:02]} 5. Bb5+ {[%emt 0:02:56]} Nc6 {[%emt 0:01:32]} 6. h3 {[%emt 0:01:45]} Bd7 {[%emt 0:04:07]} 7. O-O {[%emt 0:02:37]} Nf6 {[%emt 0:02:47]} 8. b3 {[%emt 0:07:10]} a6 {[%emt 0:05:56]} 9. Bxc6 {[%emt 0:02:46]} Bxc6 {[%emt 0:05:27]} 10. Ne5 {[%emt 0:01:30]} Rc8 {[%emt 0:04:08]} 11. Ba3 {[%emt 0:02:38]} b5 {[%emt 0:06:05]} 12. Qf3 {[%emt 0:04:54]} Qb6 {[%emt 0:13:08]} 13. Bc5 {[%emt 0:00:55]} Qb8 {[%emt 0:11:29]} 14. Nd2 {[%emt 0:19:06]} Bb7 {[%emt 0:08:27]} 15. Rfe1 {[%emt 0:04:47]} e6 {[%emt 0:05:02]} 16. b4 {[%emt 0:04:59]} Bd6 {[%emt 0:05:40]} 17. Bxd6 {[%emt 0:11:11]} Qxd6 {[%emt 0:00:19]} 18. a3 {[%emt 0:00:45]} Rxc2 {[%emt 0:07:41]} 19. Nb3 {[%emt 0:00:46]} Rc7 {[%emt 0:02:13]} 20. Rac1 {[%emt 0:03:27]} O-O {[%emt 0:03:48]} 21. Rxc7 {[%emt 0:03:22]} Qxc7 {[%emt 0:00:13]} 22. Rc1 {[%emt 0:00:27]} Qd6 {[%emt 0:03:30]} 23. Qc3 {[%emt 0:02:59]} Ne4 {[%emt 0:04:08]} 24. Qc7 {[%emt 0:00:38]} Qxc7 {[%emt 0:01:17]} 25. Rxc7 {[%emt 0:00:04]} Bc8 {[%emt 0:01:55]} 26. Nc6 {[%emt 0:02:24]} Nd6 {[%emt 0:00:39]} 27. Ne7+ {[%emt 0:00:10]} Kh8 {[%emt 0:00:05]} 28. Nxc8 {[%emt 0:00:20]} Rxc8 {[%emt 0:00:41]} 29. Rxc8+ {[%emt 0:00:03]} Nxc8 {[%emt 0:00:06]} 30. Nc5 {[%emt 0:00:24]} Nb6 {[%emt 0:00:29]} 31. Nxa6 {[%emt 0:01:00]} Nc4 {[%emt 0:00:16]} 32. a4 {[%emt 0:01:19]} bxa4 {[%emt 0:00:20]} 33. b5 {[%emt 0:00:32]} a3 {[%emt 0:00:20]} 34. Nb4 {[%emt 0:00:42]} Kg8 {[%emt 0:00:31]} 35. Kf1 {[%emt 0:00:20]} Kf8 {[%emt 0:00:09]} 36. Ke2 {[%emt 0:00:18]} Ke7 {[%emt 0:00:19]} 37. Kd3 {[%emt 0:00:10]} Kd6 {[%emt 0:00:29]} 38. Na2 {[%emt 0:01:48]} Kc7 {[%emt 0:00:57]} 39. Kc3 {[%emt 0:00:33]} Kb6 {[%emt 0:00:07]} 40. Kb4 {[%emt 0:01:47]} e5 {[%emt 0:00:51]} 41. dxe5 {[%emt 0:00:37]} Nxe5 {[%emt 0:00:06]} 42. Nc3 {[%emt 0:01:17]} a2 {[%emt 0:00:53]} 43. Nxa2 {[%emt 0:00:03]} Nd3+ {[%emt 0:00:09]} 44. Ka4 {[%emt 0:00:47]} Nxf2 {[%emt 0:00:38]} 45. Nb4 {[%emt 0:00:51]} d4 {[%emt 0:00:43]} 46. Nd5+ {[%emt 0:00:13]} Kb7 {[%emt 0:00:50]} 47. Kb4 {[%emt 0:00:23]} d3 {[%emt 0:00:26]} 48. Kc3 {[%emt 0:00:30]} Kc8 {[%emt 0:00:47]} 49. Ne7+ {[%emt 0:01:16]} Kc7 {[%emt 0:00:39]} 50. Nd5+ {[%emt 0:01:31]} Kd6 {[%emt 0:00:20]} 51. b6 {[%emt 0:00:29]} Kc6 {[%emt 0:01:08]} 52. Nb4+ {[%emt 0:02:49]} Kxb6 {[%emt 0:00:12]} 53. Nxd3 {[%emt 0:00:07]} Nxd3 {[%emt 0:00:11]} 54. Kxd3 {[%emt 0:00:09]} Kc5 {[%emt 0:00:11]} 55. Ke4 {[%emt 0:00:04]} Kd6 {[%emt 0:00:26]} 56. Kf5 {[%emt 0:00:20]} Ke7 {[%emt 0:00:19]} 57. g4 {[%emt 0:00:28]} g6+ {[%emt 0:01:28]} 58. Kg5 {[%emt 0:00:10]} Ke6 {[%emt 0:00:35]} 59. Kf4 {[%emt 0:01:20]} f5 {[%emt 0:00:47]} 60. g5 {[%emt 0:00:48]} Kd5 {[%emt 0:00:21]} 61. Kf3 {[%emt 0:00:43]} Kd4 {[%emt 0:00:36]} 62. Kf4 {[%emt 0:00:05]} Kd5 {[%emt 0:00:15]} 63. Kf3 {[%emt 0:00:04]} Ke5 {[%emt 0:00:09]} 64. Ke3 {[%emt 0:00:17]} f4+ {[%emt 0:00:13]} 65. Kf3 {[%emt 0:00:06]} Kf5 {[%emt 0:00:14]} 66. h4 {[%emt 0:00:10]} Ke5 {[%emt 0:00:23]} 67. Kf2 {[%emt 0:00:04]} Ke4 {[%emt 0:00:16]} 68. Ke2 {[%emt 0:00:02]} f3+ {[%emt 0:00:11]} 69. Kf2 {[%emt 0:00:18]} Kf4 {[%emt 0:00:07]} 70. h5 {[%emt 0:00:43]} gxh5 {[%emt 0:00:10]} 71. g6 {[%emt 0:00:06]} hxg6 {[%emt 0:00:09]} 72. Kf1 {[%emt 0:00:06]} h4 {[%emt 0:00:10]} 73. Kf2 {[%emt 0:00:04]} h3 {[%emt 0:00:05]} 74. Kf1 {[%emt 0:00:19]} h2 {[%emt 0:00:21]} 75. Kf2 {[%emt 0:00:06]} g5 {[%emt 0:00:18]} 0-1

[Event "Portuguese-ch U10-12 2022"]
[Site "Fatima"]
[Date "2022.04.14"]
[Round "7.6"]
[White "Fernandes, Martim"]
[Black "Pinto, Jose Joao Meireles A"]
[Result "1-0"]
[ECO "B12"]
[WhiteElo "1413"]
[BlackElo "1288"]
[Annotator "NA RC"]
[PlyCount "119"]
[EventDate "2022.04.10"]
[EventType "swiss"]
[EventCountry "POR"]
[SourceTitle "playchess.com"]
[Source "ChessBase"]
[SourceQuality "1"]
[TimeControl "5400+30"]

1. e4 {[%emt 0:00:01]} c6 {[%emt 0:03:57]} 2. d4 {[%emt 0:00:04]} d5 {[%emt 0:00:07]} 3. e5 {[%emt 0:00:02]} c5 {[%emt 0:00:31]} 4. Nf3 {[%emt 0:00:37]} Nc6 {[%emt 0:00:09]} 5. c3 {[%emt 0:01:24]} e6 {[%emt 0:01:52]} 6. Be2 {[%emt 0:03:00]} cxd4 {[%emt 0:01:57]} 7. cxd4 {[%emt 0:00:34]} Bb4+ {[%emt 0:04:34]} 8. Nbd2 {[%emt 0:04:21]} Nge7 {[%emt 0:08:47]} 9. a3 {[%emt 0:00:08]} Ba5 {[%emt 0:00:19]} 10. O-O {[%emt 0:02:45]} O-O {[%emt 0:03:49]} 11. Nb3 {[%emt 0:07:07]} Bb6 {[%emt 0:03:26]} 12. Bg5 {[%emt 0:01:27]} Qd7 {[%emt 0:03:16]} 13. Nc5 {[%emt 0:06:52]} Bxc5 {[%emt 0:00:36]} 14. dxc5 {[%emt 0:01:22]} Ng6 {[%emt 0:01:19]} 15. Bb5 {[%emt 0:00:58]} Qc7 {[%emt 0:01:55]} 16. Bxc6 {[%emt 0:00:49]} bxc6 {[%emt 0:01:12]} 17. Re1 {[%emt 0:04:39]} Rb8 {[%emt 0:12:48]} 18. b4 {[%emt 0:03:14]} a5 {[%emt 0:03:23]} 19. Qd2 {[%emt 0:02:58]} axb4 {[%emt 0:01:21]} 20. axb4 {[%emt 0:00:20]} Bb7 {[%emt 0:00:18]} 21. h4 {[%emt 0:02:08]} Ra8 {[%emt 0:12:22]} 22. Rab1 {[%emt 0:02:26]} Bc8 {[%emt 0:06:16]} 23. h5 {[%emt 0:02:11]} Nxe5 {[%emt 0:08:16]} 24. Nxe5 {[%emt 0:02:48]} f6 {[%emt 0:00:17]} 25. h6 {[%emt 0:17:54]} fxg5 {[%emt 0:07:37]} 26. Qxg5 {[%emt 0:01:26]} Rf5 {[%emt 0:00:48]} 27. Qxg7+ {[%emt 0:00:14]} Qxg7 {[%emt 0:00:10]} 28. hxg7 {[%emt 0:00:07]} Bb7 {[%emt 0:01:38]} 29. Nf3 {[%emt 0:02:12]} Rf6 {[%emt 0:01:39]} 30. Nd4 {[%emt 0:01:17]} Re8 {[%emt 0:00:31]} 31. Re5 {[%emt 0:01:15]} Rf4 {[%emt 0:01:10]} 32. Rd1 {[%emt 0:01:13]} Rf6 {[%emt 0:01:33]} 33. Rde1 {[%emt 0:03:18]} Kf7 {[%emt 0:02:26]} 34. Rxe6 {[%emt 0:02:57]} Rfxe6 {[%emt 0:00:33]} 35. Rxe6 {[%emt 0:00:42]} Rxe6 {[%emt 0:00:16]} 36. Nxe6 {[%emt 0:00:12]} Bc8 {[%emt 0:00:04]} 37. Nd8+ {[%emt 0:00:13]} Kxg7 {[%emt 0:00:10]} 38. Nxc6 {[%emt 0:00:12]} Kf6 {[%emt 0:00:50]} 39. Kf1 {[%emt 0:01:38]} Ba6+ {[%emt 0:01:23]} 40. Ke1 {[%emt 0:00:17]} Bb7 {[%emt 0:00:22]} 41. Nd4 {[%emt 0:02:05]} Ke5 {[%emt 0:00:37]} 42. Nf3+ {[%emt 0:00:58]} Kf5 {[%emt 0:00:38]} 43. Kd2 {[%emt 0:00:57]} h6 {[%emt 0:00:23]} 44. Ke3 {[%emt 0:00:20]} h5 {[%emt 0:03:18]} 45. g3 {[%emt 0:00:43]} Ba6 {[%emt 0:00:46]} 46. Nd4+ {[%emt 0:00:40]} Ke5 {[%emt 0:00:16]} 47. b5 {[%emt 0:00:18]} Bc8 {[%emt 0:00:18]} 48. b6 {[%emt 0:00:09]} Kf6 {[%emt 0:00:20]} 49. c6 {[%emt 0:00:17]} Ke7 {[%emt 0:01:55]} 50. b7 {[%emt 0:00:11]} Kd8 {[%emt 0:00:06]} 51. bxc8=Q+ {[%emt 0:00:29]} Kxc8 {[%emt 0:00:07]} 52. Kf4 {[%emt 0:00:14]} Kc7 {[%emt 0:00:22]} 53. Ke5 {[%emt 0:00:05]} h4 {[%emt 0:00:15]} 54. gxh4 {[%emt 0:00:06]} Kd8 {[%emt 0:00:17]} 55. Kd6 {[%emt 0:00:07]} Kc8 {[%emt 0:00:14]} 56. c7 {[%emt 0:00:10]} Kb7 {[%emt 0:00:11]} 57. Kd7 {[%emt 0:00:08]} Kb6 {[%emt 0:00:14]} 58. c8=Q {[%emt 0:00:17]} Ka7 {[%emt 0:00:11]} 59. Qc1 {[%emt 0:00:26]} Ka8 {[%emt 0:00:21]} 60. Kc7 {[%emt 0:00:18]} 1-0

[Event "Portuguese-ch U10-12 2022"]
[Site "Fatima"]
[Date "2022.04.14"]
[Round "7.7"]
[White "Arbulu Rocha, Miguel"]
[Black "Moldovan, Lucas"]
[Result "1-0"]
[ECO "A15"]
[WhiteElo "1931"]
[BlackElo "1583"]
[Annotator "TA"]
[PlyCount "103"]
[EventDate "2022.04.10"]
[EventType "swiss"]
[EventCountry "POR"]
[SourceTitle "playchess.com"]
[Source "ChessBase"]
[SourceQuality "1"]
[TimeControl "5400+30"]

{[%evp 14,103,18,6,0,0,33,29,14,11,59,59,64,58,74,29,47,33,43,0,0,0,0,0,100,92,104,14,57,57,55,47,58,57,168,166,163,160,161,118,117,119,129,109,169,136,273,273,274,282,419,381,427,272,267,261,392,408,393,401,431,426,862,848,789,833,745,640,1143,1081,1192,1056,1169,1018,1328,1378,12837,12835,12837,12838,12837,1662,12837,12838,12838,12838,12843,12843,12840,12838,1781,723]} 1. c4 {[%emt 0:00:03]} Nf6 {[%emt 0:00:11]} 2. Nf3 {[%emt 0:00:24]} g6 {[%emt 0:00:37]} 3. g3 {[%emt 0:00:13]} Bg7 {[%emt 0:00:49]} 4. Bg2 {[%emt 0:00:34]} O-O {[%emt 0:00:59]} 5. O-O {[%emt 0:01:01]} c6 {[%emt 0:01:50]} 6. Nc3 {[%emt 0:02:16]} d5 {[%emt 0:01:30]} 7. cxd5 {[%emt 0:02:38]} Nxd5 {[%emt 0:00:17]} 8. e4 {[%emt 0:02:40]} Nb6 {[%emt 0:04:01] A16: English Opening: 1...Nf6 with ...d5.} 9. d3 {[%emt 0:05:35] [#]} Be6 $146 {[%emt 0:05:36]} ({Predecessor:} 9... N8d7 10. Be3 h6 11. Qc2 e5 12. Rad1 Qe7 13. b3 Re8 14. h3 Nf6 15. Rfe1 Nbd7 16. d4 exd4 17. Bxd4 {1-0 (38) Boehm,M (2135)-Yi,D (2286) Neustadt an der Weinstrasse 2020}) 10. Be3 {[%emt 0:04:12]} Na6 {[%emt 0:05:11] White has an edge.} 11. Qe2 {[%emt 0:05:43]} h6 {[%emt 0:04:46] Inhibits Ng5.} (11... Bg4 $11) 12. Rfd1 {[%emt 0:06:14]} Qd6 {[%emt 0:03:58]} 13. Rac1 {[%emt 0:04:34]} Qb4 {[%emt 0:06:59]} 14. Qc2 {[%emt 0:08:35]} Rfd8 {[%emt 0:08:38]} 15. a3 {[%emt 0:05:01]} Qb3 {[%emt 0:01:39]} 16. Ne1 {[%emt 0:02:34]} (16. Qb1 $5 {[%cal Rf3d2]} Na4 17. d4 $14 (17. Nxa4 Qxa4 18. d4 Rd6 $11)) 16... Qxc2 {[%emt 0:01:31]} 17. Nxc2 {[%emt 0:00:10]} Bb3 {[%emt 0:00:07]} 18. Rd2 {[%emt 0:01:22]} Na4 {[%emt 0:03:09] [#]} (18... e5 $11) 19. Na1 $1 $16 {[%emt 0:01:48]} Nxc3 {[%emt 0:01:54]} 20. bxc3 {[%emt 0:01:24]} (20. Nxb3 $16 Nb5 21. d4) 20... Be6 {[%emt 0:05:03]} 21. d4 {[%emt 0:03:42]} Bc4 {[%emt 0:04:51]} 22. Nc2 {[%emt 0:03:33][%cal Ba1c2,Bc2b4,Bb4c6][%mdl 32]} Nc7 {[%emt 0:08:39]} 23. a4 {[%emt 0:04:11] Prevents Nb5.} b6 {[%emt 0:05:54] [#]} (23... Rac8 $14) 24. Nb4 $1 $18 {[%emt 0:02:23]} c5 {[%emt 0:00:53]} 25. Nc6 {[%emt 0:00:41]} Rd7 {[%emt 0:03:15]} 26. f4 {[%emt 0:04:15]} e6 {[%emt 0:04:11]} 27. dxc5 {[%emt 0:03:28] &Bianco is more active.} Rxd2 {[%emt 0:00:10]} 28. Bxd2 {[%emt 0:00:05]} bxc5 {[%emt 0:00:09]} (28... Bf8 $16) 29. Be3 {[%emt 0:00:26]} Na6 {[%emt 0:00:45] A mistake that costs the game.} (29... e5 $16 30. f5 (30. Nxe5 Bxe5 31. fxe5 Ne6 $16) (30. fxe5 Ne6 $14) 30... Bb3) 30. e5 {[%emt 0:00:40]} Kh7 {[%emt 0:04:12]} 31. Rb1 {[%emt 0:01:57]} Rc8 {[%emt 0:03:08]} (31... Nc7 $142 32. Na5 (32. Bxc5 Nd5 $18) 32... Bd5) 32. Rb7 {[%emt 0:01:56]} Rc7 {[%emt 0:01:00]} 33. Rxa7 {[%emt 0:00:39]} Rxa7 {[%emt 0:00:11]} 34. Nxa7 {[%emt 0:00:06]} Bf8 {[%emt 0:00:51]} (34... f6 {is a better defense.} 35. Nc6 g5) 35. Bf1 {[%emt 0:00:26]} Bxf1 {[%emt 0:00:19]} 36. Kxf1 {[%emt 0:00:05][%mdl 4096] Endgame KBN-KBN} c4 {[%emt 0:00:19]} 37. Nc6 {[%emt 0:00:30] White is clearly winning.} Bc5 {[%emt 0:00:50]} (37... Kg7 $142 38. Ke2 Nc7) 38. Bxc5 {[%emt 0:00:08]} Nxc5 {[%emt 0:00:36] KN-KN} 39. a5 {[%emt 0:00:03][%cal Ba4a5,Ba5a6,Ba6a7][%mdl 32]} g5 {[%emt 0:01:16]} 40. Nb4 {[%emt 0:00:51]} Kg6 {[%emt 0:00:06]} 41. a6 {[%emt 0:00:13] Black must now prevent a7.} Nd7 {[%emt 0:00:05]} 42. Kf2 {[%emt 0:00:16]} Kf5 {[%emt 0:00:39]} 43. Kf3 {[%emt 0:00:11]} gxf4 {[%emt 0:00:34]} 44. gxf4 {[%emt 0:00:07]} f6 {[%emt 0:00:05]} 45. exf6 {[%emt 0:00:17] Intending a7 and mate.} Kxf6 {[%emt 0:00:02]} 46. a7 {[%emt 0:00:23]} Nb6 {[%emt 0:00:02]} 47. Na6 {[%emt 0:00:14]} Na8 {[%emt 0:00:06]} 48. Ke4 {[%emt 0:00:10]} h5 {[%emt 0:00:20]} 49. h4 {[%emt 0:00:04]} Kg6 {[%emt 0:00:30]} 50. Ke5 {[%emt 0:00:15]} Kf7 {[%emt 0:00:07]} 51. f5 {[%emt 0:00:27]} exf5 {[%emt 0:00:17]} 52. Kxf5 {[%emt 0:00:05] Weighted Error Value: White=0.18 (very precise) /Black=0.40} 1-0

[Event "Portuguese-ch U10-12 2022"]
[Site "Fatima"]
[Date "2022.04.14"]
[Round "7.8"]
[White "Valente, Sofia"]
[Black "Filipe, Gustavo Castro"]
[Result "1-0"]
[ECO "B76"]
[WhiteElo "1410"]
[BlackElo "1401"]
[Annotator "NA RC"]
[PlyCount "55"]
[EventDate "2022.04.10"]
[EventType "swiss"]
[EventCountry "POR"]
[SourceTitle "playchess.com"]
[Source "ChessBase"]
[SourceQuality "1"]
[TimeControl "5400+30"]

1. e4 {[%emt 0:00:17]} c5 {[%emt 0:00:10]} 2. Nf3 {[%emt 0:00:31]} d6 {[%emt 0:00:05]} 3. d4 {[%emt 0:00:30]} cxd4 {[%emt 0:00:06]} 4. Nxd4 {[%emt 0:00:16]} Nf6 {[%emt 0:00:34]} 5. Nc3 {[%emt 0:00:37]} g6 {[%emt 0:00:27]} 6. Be3 {[%emt 0:00:32]} Bg7 {[%emt 0:00:30]} 7. f3 {[%emt 0:00:56]} O-O {[%emt 0:00:38]} 8. Qd2 {[%emt 0:00:26]} Nc6 {[%emt 0:00:43]} 9. g4 {[%emt 0:00:27]} Ne5 {[%emt 0:02:16]} 10. h4 {[%emt 0:04:01]} Bd7 {[%emt 0:03:03]} 11. h5 {[%emt 0:07:19]} Rc8 {[%emt 0:05:32]} 12. hxg6 {[%emt 0:02:08]} fxg6 {[%emt 0:00:51]} 13. Bh6 {[%emt 0:05:14]} Nc4 {[%emt 0:01:06]} 14. Bxc4+ {[%emt 0:00:43]} Rxc4 {[%emt 0:00:02]} 15. Bxg7 {[%emt 0:01:00]} Kxg7 {[%emt 0:00:09]} 16. Qh6+ {[%emt 0:01:10]} Kg8 {[%emt 0:00:17]} 17. Nd5 {[%emt 0:02:59]} Rf7 {[%emt 0:00:47]} 18. Nxf6+ {[%emt 0:04:44]} exf6 {[%emt 0:00:10]} 19. c3 {[%emt 0:03:56]} Qb6 {[%emt 0:02:27]} 20. O-O-O {[%emt 0:03:57]} Qa5 {[%emt 0:03:46]} 21. Kb1 {[%emt 0:03:03]} b5 {[%emt 0:03:28]} 22. Rh2 {[%emt 0:02:17]} b4 {[%emt 0:00:35]} 23. Rdh1 {[%emt 0:00:47]} bxc3 {[%emt 0:01:11]} 24. Qxg6+ {[%emt 0:00:37]} Rg7 {[%emt 0:00:52]} 25. Qxf6 {[%emt 0:13:32]} Qb6 {[%emt 0:01:11]} 26. Ne6 {[%emt 0:05:19]} c2+ {[%emt 0:01:38]} 27. Rxc2 {[%emt 0:04:09]} Rf7 {[%emt 0:00:25]} 28. Qg5+ {[%emt 0:02:37]} 1-0